bitfinex/quotes_SOLUSD_20220207
["timestamp","ask_amount","ask_price","bid_price","bid_amount"]
[1644248436542,48.09544259,121.69,121.58,39.61406489]
[1644248436742,48.09544259,121.69,121.58,6.04802]
[1644248437143,22.352,121.68,121.58,6.04802]
[1644248437343,4.11,121.67,121.58,6.04802]
[1644248437742,45.86380135,121.66,121.58,6.04802]
[1644248438945,58.20830135,121.66,121.49,22.3532]
[1644248439246,58.20830135,121.66,121.5,45.91956433]
[1644248439645,45.44942943,121.64,121.5,45.91956433]
[1644248439843,55.45942943,121.64,121.5,45.91956433]
[1644248440244,55.70942943,121.64,121.5,45.91956433]
[1644248441044,55.70942943,121.64,121.5,6.052]
[1644248441246,108.126258,121.64,121.5,6.052]
[1644248441446,66.7304,121.63,121.5,6.052]
[1644248441646,10.01,121.62,121.5,6.052]
[1644248441945,34.41402672,121.61,121.5,47.10913914]
[1644248442145,44.42402672,121.61,121.5,47.10913914]
[1644248442349,44.42402672,121.61,121.5,6.052]
[1644248443554,44.42402672,121.61,121.51,39.84093766]
[1644248443756,44.42402672,121.61,121.52,6.05101]
[1644248443955,44.42402672,121.61,121.53,46.28711844]
[1644248444554,44.42402672,121.61,121.52,6.05101]
[1644248444954,50.27,121.6,121.52,6.05101]
[1644248445655,36.46447613,121.57,121.52,6.05101]
[1644248446554,86.73447613,121.57,121.52,6.05101]
[1644248447257,133.0,121.56,121.44,4.113]
[1644248447455,133.0,121.56,121.44,6.05499]
[1644248447859,183.27,121.56,121.44,7.91260261]
[1644248448056,38.85936689,121.55,121.45,41.92368789]
[1644248448355,38.85936689,121.55,121.46,6.054]
[1644248448779,39.10936689,121.55,121.46,6.054]
[1644248448958,39.10936689,121.55,121.39,2.31819836]
[1644248449156,39.10936689,121.55,121.4,6.05699]
[1644248449356,49.11936689,121.55,121.4,6.05699]
[1644248449555,36.8324855,121.53,121.41,35.59374195]
[1644248450160,87.1024855,121.53,121.4,6.05699]
[1644248450559,36.8324855,121.53,121.4,6.05699]
[1644248450960,36.8324855,121.53,121.4,20.71788722]
[1644248451158,36.8324855,121.53,121.41,43.44408512]
[1644248451359,36.8324855,121.53,121.41,42.44408512]
[1644248451561,36.8324855,121.53,121.42,1.85761261]
[1644248451759,146.6566,121.57,121.43,34.22840148]
[1644248452159,142.5406,121.57,121.44,1.85761261]
[1644248452359,142.5406,121.57,121.43,44.23840148]
[1644248452758,42.34463494,121.56,121.43,44.23840148]
[1644248452959,46.45963494,121.56,121.43,44.23840148]
[1644248453160,42.34463494,121.56,121.43,44.23840148]
[1644248453559,42.34463494,121.56,121.43,10.01]
[1644248454059,92.61463494,121.56,121.4,6.43319836]
[1644248454262,92.61463494,121.56,121.39,12.32819836]
[1644248454460,42.34463494,121.56,121.39,12.32819836]
[1644248454658,42.34463494,121.56,121.4,53.74925869]
[1644248454859,42.34463494,121.56,121.42,36.92623632]
[1644248455060,42.34463494,121.56,121.44,39.55298117]
[1644248455260,42.59463494,121.56,121.44,39.55298117]
[1644248456866,42.59463494,121.56,121.44,49.56298117]
[1644248457062,42.59463494,121.56,121.44,56.32204505]
[1644248457260,42.59463494,121.56,121.44,39.55298117]
[1644248457461,42.34463494,121.56,121.44,39.55298117]
[1644248458562,48.02139327,121.54,121.44,39.55298117]
[1644248458762,98.54139327,121.54,121.44,39.55298117]
[1644248459364,48.02139327,121.54,121.44,39.55298117]
[1644248460161,98.29139327,121.54,121.41,4.115]
[1644248460361,98.29139327,121.54,121.41,6.05649]
[1644248461164,98.29139327,121.54,121.42,47.76708344]
[1644248461463,98.29139327,121.54,121.42,47.46708344]
[1644248461662,98.29139327,121.54,121.41,6.05649]
[1644248462169,50.27,121.52,121.38,2.31819836]
[1644248462368,50.27,121.52,121.37,2.31819836]
[1644248462665,40.58381498,121.51,121.38,39.79296252]
[1644248462867,50.27,121.5,121.38,39.79296252]
[1644248463066,34.76731044,121.47,121.38,39.79296252]
[1644248463265,85.03731044,121.47,121.35,2.31819836]
[1644248463465,85.03731044,121.47,121.35,2.80922464]
[1644248463665,94.65831044,121.47,121.34,2.80922464]
[1644248463888,94.65831044,121.47,121.34,2.83322464]
[1644248464188,157.0,121.44,121.28,7.55353761]
[1644248464391,207.27,121.43,121.22,4.119]
[1644248464589,219.42682857,121.43,121.26,2.32472559]
[1644248464788,50.27,121.38,121.23,2.32667054]
[1644248464988,50.27,121.38,121.19,521.14441274]
[1644248464989,50.27,121.36,121.2,2.32667054]
[1644248465188,50.27,121.34,121.21,6.06648]
[1644248465388,59.73928434,121.35,121.16,15.29567054]
[1644248465389,64.402,121.33,121.16,15.29567054]
[1644248465590,10.01,121.32,121.16,15.29567054]
[1644248465789,50.27,121.31,121.16,15.29567054]
[1644248465990,50.27,121.29,121.16,15.29567054]
[1644248466189,14.134,121.28,121.19,2.32667054]
[1644248466390,45.24976876,121.27,121.16,50.09703377]
[1644248466590,45.24976876,121.27,121.16,47.77036323]
[1644248467393,45.24976876,121.27,121.16,12.969]
[1644248467792,50.27,121.26,121.16,12.969]
[1644248468196,10.01,121.25,121.16,12.969]
[1644248468493,41.36357408,121.24,121.17,40.68274008]
[1644248468694,10.01,121.27,121.17,40.68274008]
[1644248468896,10.01,121.3,121.17,40.68274008]
[1644248469794,44.42518178,121.3,121.17,40.68274008]
[1644248470194,44.42518178,121.3,121.17,44.80674008]
[1644248470394,44.42518178,121.3,121.17,40.68274008]
[1644248470595,110.6821,121.32,121.17,40.68274008]
[1644248470813,10.01,121.35,121.18,20.49096956]
[1644248470994,6.18045,121.35,121.18,30.50096956]
[1644248471194,6.18045,121.35,121.19,14.55167996]
[1644248471394,6.18045,121.35,121.2,4.123]
[1644248471595,38.94988793,121.34,121.21,46.85917255]
[1644248471793,45.13033793,121.34,121.24,34.3037603]
[1644248472895,6.18045,121.34,121.24,38.6757603]
[1644248473095,6.18045,121.34,121.24,51.0452603]
[1644248473296,24.8244,121.36,121.24,46.6732603]
[1644248473795,41.72236649,121.35,121.24,34.3037603]
[1644248474194,41.97236649,121.35,121.24,34.3037603]
[1644248474997,51.98236649,121.35,121.24,34.3037603]
[1644248475195,102.25236649,121.35,121.24,34.3037603]
[1644248475398,102.25236649,121.35,121.18,12.3766]
[1644248475896,2.14682857,121.34,121.15,14.132]
[1644248476197,50.27,121.32,121.15,4.122]
[1644248476396,51.0670431,121.31,121.16,44.77398231]
[1644248477398,101.3370431,121.31,121.16,44.77398231]
[1644248477796,51.0670431,121.31,121.16,44.77398231]
[1644248478198,51.0670431,121.31,121.16,57.40278231]
[1644248478397,41.0570431,121.31,121.16,61.52678231]
[1644248478597,41.0570431,121.31,121.18,47.3863786]
[1644248479205,41.0570431,121.31,121.18,47.6363786]
[1644248479606,41.0570431,121.31,121.19,0.024]
[1644248480507,10.01,121.34,121.19,0.024]
[1644248481104,167.9698,121.35,121.19,0.024]
[1644248481306,167.9698,121.35,121.2,10.01]
[1644248481507,24.8244,121.36,121.21,54.1928057]
[1644248481706,24.8244,121.36,121.22,10.034]
[1644248481906,46.6862,121.4,121.22,10.034]
[1644248482105,46.6862,121.4,121.23,0.024]
[1644248482305,46.6862,121.4,121.24,10.01]
[1644248482506,46.6862,121.4,121.25,41.20781989]
[1644248482507,42.91093544,121.39,121.25,41.20781989]
[1644248482707,42.91093544,121.39,121.26,0.024]
[1644248482906,52.92093544,121.39,121.26,0.024]
[1644248485414,52.92093544,121.39,121.27,47.71303369]
[1644248485415,42.91093544,121.39,121.27,47.71303369]
[1644248485611,42.91093544,121.39,121.28,0.024]
[1644248486011,93.18093544,121.39,121.28,0.024]
[1644248486718,93.43093544,121.39,121.28,0.024]
[1644248487512,95.57776401,121.39,121.28,0.024]
[1644248487712,50.27,121.37,121.23,0.024]
[1644248487915,60.28,121.36,121.22,0.024]
[1644248488513,48.42519787,121.35,121.22,48.59417549]
[1644248488716,48.42519787,121.35,121.23,0.024]
[1644248489515,50.27,121.34,121.23,0.024]
[1644248489713,50.27,121.32,121.21,0.024]
[1644248489914,10.01,121.31,121.18,0.024]
[1644248490114,10.01,121.31,121.14,14.70787054]
[1644248490115,50.27,121.3,121.14,14.70787054]
[1644248490313,50.52,121.3,121.16,2.32667054]
[1644248490522,44.2638449,121.29,121.17,47.75111496]
[1644248490717,0.25,121.3,121.17,47.72711496]
[1644248490918,0.25,121.3,121.18,0.024]
[1644248491722,0.25,121.3,121.17,73.76271496]
[1644248492121,90.50413387,121.32,121.17,69.63871496]
[1644248492322,90.75413387,121.32,121.17,69.63871496]
[1644248492923,40.23413387,121.32,121.17,69.63871496]
[1644248493125,40.23413387,121.32,121.19,40.59244867]
[1644248493321,47.8659,121.34,121.19,52.96794867]
[1644248493524,47.8659,121.34,121.2,10.01]
[1644248493723,47.8659,121.34,121.2,16.45967054]
[1644248493923,47.8659,121.34,121.21,2.32667054]
[1644248494124,50.27,121.33,121.2,12.58667054]
[1644248494324,97.71081613,121.33,121.21,40.82518988]
[1644248495427,97.96081613,121.33,121.21,40.82518988]
[1644248496027,97.96081613,121.33,121.18,14.70387054]
[1644248496028,97.71081613,121.33,121.18,2.32667054]
[1644248496228,50.27,121.31,121.18,2.32667054]
[1644248496429,50.27,121.31,121.16,22.3895]
[1644248496430,50.27,121.31,121.16,24.71617054]
[1644248496831,50.27,121.31,121.16,22.3895]
[1644248497031,50.27,121.29,121.17,37.24185853]
[1644248497231,50.27,121.27,121.17,37.24185853]
[1644248497560,35.96943502,121.24,121.17,37.24185853]
[1644248497752,86.23943502,121.24,121.17,37.24185853]
[1644248498254,10.01,121.27,121.17,37.24185853]
[1644248498651,50.27,121.28,121.17,37.24185853]
[1644248499051,50.52,121.28,121.17,37.24185853]
[1644248499251,43.34298108,121.27,121.17,37.24185853]
[1644248499453,50.27,121.26,121.12,2.68667598]
[1644248499651,50.27,121.26,121.12,0.36000544]
[1644248500552,50.27,121.24,121.12,42.23687642]
[1644248500753,42.17014146,121.23,121.12,39.73687642]
[1644248501351,42.17014146,121.23,121.12,39.23687642]
[1644248501752,50.27,121.26,121.12,39.23687642]
[1644248502051,60.28,121.26,121.12,39.23687642]
[1644248502654,10.01,121.26,121.12,51.62017642]
[1644248502854,23.6554,121.29,121.12,51.62017642]
[1644248502855,33.6654,121.29,121.12,55.99517642]
[1644248503055,23.6554,121.29,121.13,11.88213121]
[1644248503254,23.6554,121.29,121.14,4.125]
[1644248503457,24.4777,121.33,121.14,5.99713121]
[1644248503754,41.88341654,121.32,121.16,41.24135513]
[1644248503953,92.15341654,121.32,121.18,43.22199327]
[1644248504155,39.38341654,121.32,121.18,55.59919327]
[1644248504354,24.4777,121.33,121.18,55.59919327]
[1644248504554,24.4777,121.33,121.19,10.01]
[1644248504756,24.4777,121.33,121.19,14.383]
[1644248505153,24.4777,121.33,121.19,20.383]
[1644248505353,24.4777,121.33,121.2,47.19663166]
[1644248505554,24.4777,121.33,121.21,12.3748]
[1644248505755,118.3476,121.41,121.22,10.01]
[1644248505954,158.6076,121.41,121.22,10.01]
[1644248506158,158.6076,121.41,121.23,4.121]
[1644248506358,158.6076,121.41,121.24,10.01]
[1644248506558,50.27,121.39,121.25,35.72885207]
[1644248506758,38.90297105,121.38,121.27,48.67946229]
[1644248507158,89.17297105,121.38,121.27,48.67946229]
[1644248507558,38.90297105,121.38,121.27,48.67946229]
[1644248507757,38.90297105,121.38,121.27,48.70346229]
[1644248511060,89.17297105,121.38,121.27,48.70346229]
[1644248511267,89.42297105,121.38,121.25,0.024]
[1644248512262,101.79737105,121.38,121.25,41.07326946]
[1644248512461,101.79737105,121.38,121.26,0.024]
[1644248513063,103.94419962,121.38,121.26,0.024]
[1644248513264,89.15726049,121.36,121.26,0.024]
[1644248513663,89.15726049,121.36,121.22,0.024]
[1644248514864,50.27,121.34,121.22,0.024]
[1644248515064,86.17487443,121.33,121.22,0.024]
[1644248518467,90.29687443,121.33,121.22,0.024]
[1644248518868,102.67617443,121.33,121.22,0.024]
[1644248519070,90.29687443,121.33,121.22,0.024]
[1644248519568,86.17487443,121.33,121.22,0.024]
[1644248519972,50.27,121.36,121.22,0.024]
[1644248520171,50.27,121.37,121.22,0.024]
[1644248520371,50.27,121.37,121.22,13.203]
[1644248520572,50.27,121.37,121.23,0.024]
[1644248520970,50.27,121.35,121.22,12.3982]
[1644248521170,40.1234527,121.34,121.23,38.74062284]
[1644248521370,90.3934527,121.34,121.24,0.024]
[1644248522372,90.6434527,121.34,121.24,0.024]
[1644248523474,90.6434527,121.34,121.18,4.122]
[1644248523475,92.79028127,121.34,121.22,0.024]
[1644248523674,50.27,121.32,121.19,0.024]
[1644248523873,50.27,121.32,121.17,0.024]
[1644248524076,50.27,121.32,121.16,0.024]
[1644248524274,50.27,121.3,121.16,36.48082212]
[1644248524475,37.05494713,121.29,121.17,0.024]
[1644248524675,87.32494713,121.29,121.17,0.024]
[1644248525082,87.32494713,121.29,121.18,47.52719038]
[1644248525777,87.32494713,121.29,121.19,0.024]
[1644248525977,37.05494713,121.29,121.19,0.024]
[1644248526978,23.4128,121.32,121.19,0.024]
[1644248527176,73.6828,121.32,121.19,12.4017]
[1644248527376,23.4128,121.32,121.2,0.024]
[1644248527577,91.9892,121.35,121.2,0.024]
[1644248527781,79.6125,121.35,121.2,10.034]
[1644248527976,92.16840023,121.34,121.21,46.62364207]
[1644248528177,79.6125,121.35,121.21,56.63364207]
[1644248528378,73.5228,121.37,121.21,71.1318107]
[1644248528578,158.1472,121.4,121.21,71.1318107]
[1644248528777,148.1372,121.4,121.21,105.60586777]
[1644248529180,43.38521134,121.39,121.21,105.60586777]
[1644248529783,43.63521134,121.39,121.21,107.93253831]
[1644248529978,43.38521134,121.39,121.21,107.93253831]
[1644248530678,43.38521134,121.39,121.23,45.70044083]
[1644248530879,43.38521134,121.39,121.28,38.71435352]
[1644248531301,43.63521134,121.39,121.28,38.71435352]
[1644248531479,93.90521134,121.39,121.28,38.71435352]
[1644248532278,106.27581134,121.39,121.28,38.71435352]
[1644248532479,43.38521134,121.39,121.28,51.08325352]
[1644248533783,93.65521134,121.39,121.28,51.08325352]
[1644248533982,43.38521134,121.39,121.28,38.71435352]
[1644248534682,50.27,121.38,121.28,38.71435352]
[1644248534882,35.81547538,121.37,121.28,38.71435352]
[1644248535283,86.08547538,121.37,121.28,38.71435352]
[1644248535483,35.81547538,121.37,121.28,38.71435352]
[1644248537081,36.06547538,121.37,121.28,38.71435352]
[1644248538283,35.81547538,121.37,121.28,48.72435352]
[1644248538886,198.4072,121.4,121.28,48.72435352]
[1644248539082,198.4072,121.4,121.28,61.09345352]
[1644248539282,23.8402,121.4,121.28,61.09345352]
[1644248539485,1.17208642,121.43,121.28,61.09345352]
[1644248539684,79.37428642,121.44,121.28,64.13149707]
[1644248539885,78.2022,121.44,121.3,41.80358021]
[1644248540090,1.17208642,121.45,121.33,12.3637]
[1644248540284,1.17208642,121.45,121.34,10.01]
[1644248540485,51.44208642,121.47,121.34,10.01]
[1644248540685,50.27,121.47,121.34,10.26]
[1644248540886,50.27,121.47,121.34,10.01]
[1644248541189,40.4814261,121.46,121.35,59.33196844]
[1644248541388,39.9814261,121.46,121.35,59.33196844]
[1644248541587,39.9814261,121.46,121.35,69.59196844]
[1644248541885,39.9814261,121.46,121.35,69.34196844]
[1644248542287,39.9814261,121.46,121.35,69.59196844]
[1644248544092,39.9814261,121.46,121.35,69.34196844]
[1644248544292,90.2514261,121.46,121.35,56.98036844]
[1644248544695,92.39825467,121.46,121.32,10.01]
[1644248545293,92.64825467,121.46,121.32,10.01]
[1644248545693,87.10592221,121.44,121.32,46.32060281]
[1644248545894,97.11592221,121.44,121.32,46.32060281]
[1644248546093,2.14682857,121.43,121.29,12.368]
[1644248546316,95.26275078,121.44,121.29,12.368]
[1644248546517,2.14682857,121.42,121.29,12.368]
[1644248546918,48.80476893,121.41,121.3,43.95507822]
[1644248547117,39.70434407,121.39,121.3,43.95507822]
[1644248547320,41.94127267,121.37,121.3,43.95507822]
[1644248550320,6.18045,121.39,121.3,43.95507822]
[1644248550522,6.18045,121.39,121.3,53.96507822]
[1644248550722,6.18045,121.39,121.3,54.21507822]
[1644248552327,6.43045,121.39,121.3,54.21507822]
[1644248552826,6.18045,121.39,121.3,54.21507822]
[1644248553026,6.18045,121.39,121.3,66.58207822]
[1644248553224,5.68045,121.39,121.3,66.58207822]
[1644248553825,45.96343565,121.39,121.3,66.33207822]
[1644248555627,45.96343565,121.39,121.3,56.32207822]
[1644248556028,5.68045,121.39,121.3,56.32207822]
[1644248556228,5.68045,121.39,121.3,66.33207822]
[1644248556828,5.68045,121.39,121.3,66.58207822]
[1644248557028,40.91719386,121.39,121.3,66.33207822]
[1644248557432,5.68045,121.39,121.3,66.33207822]
[1644248558329,3.31891499,121.44,121.3,53.96507822]
[1644248558529,3.31891499,121.44,121.31,1.16567492]
[1644248558728,23.7554,121.47,121.32,11.17567492]
[1644248558929,6.18045,121.47,121.33,1.16567492]
[1644248559128,6.18045,121.47,121.34,11.17567492]
[1644248559328,6.18045,121.47,121.34,15.29367492]
[1644248559529,6.18045,121.47,121.36,12.3594]
[1644248559729,6.18045,121.47,121.37,52.61637865]
[1644248559928,0.1,121.48,121.37,52.61637865]
[1644248560133,1.27208642,121.5,121.37,54.74433747]
[1644248560330,0.1,121.5,121.38,1.87795882]
[1644248560529,0.1,121.5,121.39,10.01]
[1644248560730,0.1,121.5,121.4,12.3563]
[1644248560928,1.17208642,121.51,121.41,49.92899102]
[1644248561129,0.2,121.52,121.41,176.88694984]
[1644248561431,0.2,121.52,121.43,35.3346011]
[1644248561630,0.2,121.52,121.44,10.01]
[1644248561835,6.38045,121.52,121.44,40.05819394]
[1644248562131,6.38045,121.52,121.45,17.44899394]
[1644248562331,6.38045,121.52,121.46,10.01]
[1644248562534,6.38045,121.52,121.46,27.45899394]
[1644248562733,6.38045,121.52,121.47,56.04066487]
[1644248562931,6.38045,121.52,121.49,37.92576689]
[1644248563130,6.38045,121.52,121.5,10.01]
[1644248564632,6.38045,121.52,121.51,45.85883258]
[1644248564832,6.28045,121.52,121.51,45.85883258]
[1644248565032,6.18045,121.52,121.49,22.3581]
[1644248565236,6.38045,121.52,121.49,22.3581]
[1644248565431,6.38045,121.52,121.49,10.01]
[1644248565933,43.5198194,121.51,121.49,10.01]
[1644248566133,43.6198194,121.51,121.49,10.01]
[1644248566534,43.6198194,121.51,121.46,10.01]
[1644248566733,0.1,121.5,121.46,10.01]
[1644248567233,0.1,121.5,121.46,22.3615]
[1644248567436,0.1,121.5,121.46,59.95368227]
[1644248567838,0.2,121.52,121.46,59.95368227]
[1644248568236,0.2,121.52,121.47,1.87315909]
[1644248568439,0.2,121.52,121.48,22.3557]
[1644248568636,0.2,121.52,121.49,37.9115791]
[1644248568837,0.2,121.58,121.5,10.01]
[1644248569038,45.4511969,121.56,121.51,47.60033839]
[1644248569238,6.38045,121.55,121.51,10.01]
[1644248569441,6.38045,121.55,121.47,41.1521]
[1644248569640,6.38045,121.55,121.5,0.0064]
[1644248569841,6.38045,121.55,121.46,10.01]
[1644248570041,6.38045,121.55,121.45,10.01]
[1644248570241,56.65045,121.55,121.45,10.01]
[1644248570441,38.07063455,121.54,121.45,10.01]
[1644248570639,6.38045,121.53,121.45,10.01]
[1644248570841,35.60368362,121.52,121.46,41.86098186]
[1644248571040,6.28045,121.51,121.46,51.87098186]
[1644248571440,6.18045,121.51,121.46,51.87098186]
[1644248572241,43.16359055,121.51,121.47,12.3502]
[1644248572442,0.1,121.5,121.42,1.87315909]
[1644248572643,0.1,121.5,121.43,10.01]
[1644248573045,0.1,121.5,121.4,10.01]
[1644248573241,0.1,121.5,121.38,10.01]
[1644248573445,50.27,121.49,121.38,22.3687]
[1644248573642,46.14195298,121.48,121.39,35.67067942]
[1644248573848,46.04195298,121.48,121.39,35.67067942]
[1644248574241,46.14195298,121.48,121.39,35.67067942]
[1644248574443,46.04195298,121.48,121.39,35.67067942]
[1644248574643,46.04195298,121.48,121.39,48.02907942]
[1644248574843,46.04195298,121.48,121.4,10.01]
[1644248575047,46.04195298,121.48,121.41,41.26640401]
[1644248575547,46.14195298,121.48,121.41,12.3555]
[1644248575748,46.04195298,121.48,121.4,10.01]
[1644248576145,46.29195298,121.48,121.4,10.01]
[1644248576544,0.25,121.48,121.41,47.66325343]
[1644248576745,0.1,121.51,121.42,22.3652]
[1644248577545,46.36577323,121.51,121.42,22.3652]
[1644248577750,0.1,121.5,121.42,22.3652]
[1644248578948,0.1,121.5,121.42,10.01]
[1644248579147,0.1,121.5,121.4,10.01]
[1644248579549,0.1,121.5,121.4,49.23761375]
[1644248579747,0.1,121.5,121.4,10.01]
[1644248580948,12.458,121.5,121.4,10.01]
[1644248581148,45.80034522,121.49,121.4,10.01]
[1644248581355,0.1,121.48,121.4,10.01]
[1644248581549,0.1,121.48,121.38,10.01]
[1644248581748,50.27,121.47,121.34,10.01]
[1644248582048,50.27,121.47,121.34,16.06998]
[1644248582247,12.364,121.44,121.35,40.76430524]
[1644248582450,35.94300394,121.43,121.35,40.76430524]
[1644248582750,35.94300394,121.43,121.35,46.82379524]
[1644248583355,35.94300394,121.43,121.35,40.76430524]
[1644248584153,35.94300394,121.43,121.33,10.01]
[1644248584353,48.30790394,121.43,121.33,22.3737]
[1644248584552,98.57790394,121.43,121.33,10.01]
[1644248584752,98.57790394,121.43,121.34,6.05998]
[1644248585161,98.82790394,121.43,121.34,6.05998]
[1644248585359,98.82790394,121.43,121.34,47.85344697]
[1644248586359,98.82790394,121.43,121.34,6.05998]
[1644248586958,98.82790394,121.43,121.32,10.01]
[1644248587158,98.82790394,121.43,121.34,6.05998]
[1644248587159,35.94300394,121.43,121.34,6.05998]
[1644248587359,35.94300394,121.43,121.35,10.01]
[1644248587574,24.882,121.46,121.35,10.01]
[1644248588977,24.882,121.46,121.37,12.3601]
[1644248590779,25.132,121.46,121.37,12.3601]
[1644248590980,25.132,121.46,121.37,22.3701]
[1644248591283,22.6532,121.47,121.37,22.3701]
[1644248591481,0.1,121.49,121.37,24.50436277]
[1644248591681,0.2,121.52,121.38,14.97262499]
[1644248591980,0.2,121.52,121.42,12.3533]
[1644248592279,0.2,121.52,121.39,11.89426277]
[1644248592280,1.37208642,121.54,121.43,10.01]
[1644248592481,1.37208642,121.54,121.44,10.01]
[1644248592881,0.2,121.54,121.44,10.01]
[1644248593080,0.2,121.54,121.44,24.24736277]
[1644248593580,0.2,121.54,121.44,22.3631]
[1644248594380,0.2,121.54,121.45,1.88426277]
[1644248594581,0.2,121.54,121.47,12.3499]
[1644248594784,0.2,121.54,121.48,10.01]
[1644248594982,0.45,121.55,121.48,10.01]
[1644248595188,1.17208642,121.58,121.48,10.01]
[1644248595589,1.17208642,121.58,121.45,5.99826277]
[1644248595790,1.17208642,121.57,121.45,1.88426277]
[1644248595988,1.17208642,121.57,121.4,5.99826277]
[1644248596192,1.17208642,121.58,121.46,10.01]
[1644248596797,1.17208642,121.59,121.46,10.01]
[1644248596993,1.17208642,121.59,121.46,22.6112]
[1644248597394,1.17208642,121.59,121.46,33.60427287]
[1644248597592,1.80633794,121.6,121.46,33.60427287]
[1644248597792,0.63425152,121.6,121.46,158.68427287]
[1644248597993,6.18045,121.59,121.46,172.16566328]
[1644248598194,6.18045,121.59,121.46,180.04992605]
[1644248598395,6.18045,121.59,121.46,166.92259041]
[1644248598695,6.18045,121.59,121.46,147.4412]
[1644248598898,6.63045,121.59,121.46,147.4412]
[1644248599099,7.55253642,121.59,121.46,30.24546277]
[1644248599297,6.18045,121.59,121.47,125.08]
[1644248599498,6.18045,121.59,121.5,12.3419]
[1644248599698,6.18045,121.59,121.51,10.01]
[1644248599900,6.18045,121.59,121.51,11.89426277]
[1644248600100,0.43425152,121.6,121.51,11.89426277]
[1644248600298,0.43425152,121.6,121.51,10.01]
[1644248600498,0.43425152,121.6,121.53,12.3412]
[1644248600700,0.43425152,121.6,121.53,10.01]
[1644248602099,0.43425152,121.6,121.53,22.3536]
[1644248603400,0.43425152,121.6,121.53,10.01]
[1644248605903,12.78125152,121.6,121.53,10.01]
[1644248606104,0.2,121.59,121.53,10.01]
[1644248606303,0.2,121.59,121.51,10.01]
[1644248606704,47.6312426,121.59,121.51,10.01]
[1644248606907,0.2,121.58,121.51,10.01]
[1644248608107,50.47,121.58,121.48,12.3483]
[1644248608307,0.2,121.57,121.47,10.01]
[1644248608509,0.2,121.57,121.46,10.01]
[1644248608709,2.14682857,121.56,121.46,10.01]
[1644248608910,44.11010572,121.55,121.47,43.45910022]
[1644248609113,0.2,121.54,121.47,43.45910022]
[1644248609308,0.2,121.54,121.47,53.46910022]
[1644248611009,0.2,121.54,121.47,65.81880022]
[1644248611426,0.2,121.54,121.47,10.01]
[1644248611610,0.2,121.54,121.45,10.01]
[1644248612409,12.5532,121.54,121.45,10.01]
[1644248612612,50.37,121.53,121.39,14.125]
[1644248612911,50.37,121.53,121.39,4.115]
[1644248612912,2.34682857,121.52,121.39,4.115]
[1644248613212,50.27,121.5,121.39,4.115]
[1644248613412,103.42898743,121.49,121.4,35.6967464]
[1644248613613,0.1,121.48,121.4,35.6967464]
[1644248614241,0.1,121.48,121.4,45.7067464]
[1644248614440,0.1,121.48,121.4,58.3136464]
[1644248614842,0.1,121.48,121.4,58.0636464]
[1644248616240,0.1,121.48,121.4,58.3136464]
[1644248616439,0.1,121.51,121.4,58.3136464]
[1644248617343,40.34528223,121.51,121.4,58.3136464]
[1644248617540,0.1,121.5,121.4,58.3136464]
[1644248618441,0.1,121.5,121.4,58.0636464]
[1644248618941,0.1,121.5,121.4,62.1796464]
[1644248619744,0.1,121.5,121.4,62.4296464]
[1644248620245,0.1,121.5,121.4,68.4296464]
[1644248620944,0.1,121.51,121.4,68.4296464]
[1644248621746,44.4729413,121.51,121.4,68.4296464]
[1644248621949,0.1,121.5,121.4,68.4296464]
[1644248622147,0.1,121.5,121.4,64.3136464]
[1644248623157,0.1,121.5,121.4,64.0636464]
[1644248624548,0.1,121.5,121.4,58.0636464]
[1644248625153,0.1,121.5,121.4,64.0636464]
[1644248625851,0.1,121.5,121.4,58.0636464]
[1644248627753,0.1,121.5,121.4,58.3136464]
[1644248628150,0.1,121.5,121.4,58.0636464]
[1644248629551,0.1,121.5,121.4,58.3136464]
[1644248630552,0.1,121.5,121.4,58.0636464]
[1644248631154,0.1,121.5,121.4,22.3669]